bitfinex-derivatives/quotes_ETHF0:USTF0_20250422
["timestamp","ask_amount","ask_price","bid_price","bid_amount"]
[1745290745398,5.28204,1577.2,1577.1,7.56835]
[1745290745796,4.014,1577.2,1577.1,7.56835]
[1745290746097,10.336,1577.2,1577.1,7.56835]
[1745290746297,11.60404,1577.2,1577.1,7.56835]
[1745290746798,10.336,1577.2,1577.1,7.56835]
[1745290747504,6.322,1577.2,1577.1,7.56835]
[1745290747998,6.322,1577.2,1577.1,12.56835]
[1745290748195,0.00952472,1577.5,1577.4,1.26788]
[1745290748792,0.00952472,1577.5,1577.4,3.04898]
[1745290749095,6.33152472,1577.5,1577.4,3.04898]
[1745290750601,10.45282472,1577.5,1577.4,3.04898]
[1745290750902,1.26788,1577.4,1577.3,2.42711]
[1745290751099,1.702,1577.4,1577.3,2.42711]
[1745290751488,2.96988,1577.4,1577.3,2.42711]
[1745290751690,1.26796,1577.3,1577.2,1.7366]
[1745290751894,1.702,1577.3,1577.2,3.00464]
[1745290752096,8.024,1577.3,1577.2,3.00464]
[1745290752303,9.29196,1577.3,1577.2,3.00464]
[1745290752600,8.024,1577.3,1577.2,3.00464]
[1745290753087,1.702,1577.3,1577.2,3.00464]
[1745290754201,8.024,1577.3,1577.2,3.00464]
[1745290756196,8.024,1577.3,1577.2,1.26804]
[1745290756197,9.29196,1577.3,1577.2,1.26804]
[1745290756396,1.26804,1577.2,1577.1,4.563]
[1745290756596,4.18414,1577.2,1577.1,4.563]
[1745290757002,2.9161,1577.2,1577.1,5.83107]
[1745290757302,9.2381,1577.2,1577.1,7.69327]
[1745290758199,2.9161,1577.2,1577.1,7.69327]
[1745290758803,7.59002,1577.3,1577.2,1.26804]
[1745290759103,10.48042,1577.3,1577.2,3.12574]
[1745290759296,9.2124,1577.3,1577.2,3.12574]
[1745290759604,10.48036,1577.3,1577.2,3.12574]
[1745290761004,8.0361,1577.3,1577.2,3.12574]
[1745290761212,6.322,1577.3,1577.2,4.27324]
[1745290761503,6.322,1577.3,1577.2,7.48104]
[1745290762205,1.81092472,1577.5,1577.4,1.26788]
[1745290762706,5.01872472,1577.5,1577.3,3.07679]
[1745290762905,1.26788,1577.4,1577.3,1.26789]
[1745290763097,3.06928,1577.4,1577.3,1.26789]
[1745290763606,1.8014,1577.4,1577.3,1.26789]
[1745290763806,1.8014,1577.4,1577.3,3.07679]
[1745290764301,8.1234,1577.4,1577.3,3.07679]
[1745290765207,9.39128,1577.4,1577.3,3.07679]
[1745290765502,6.322,1577.4,1577.3,3.07679]
[1745290765708,6.322,1577.4,1577.3,4.21509]
[1745290766305,0.00952472,1577.5,1577.4,1.26788]
[1745290766608,0.00952472,1577.5,1577.4,7.67728]
[1745290767899,0.00952472,1577.5,1577.4,10.88508]
[1745290771207,6.33152472,1577.5,1577.4,10.88508]
[1745290771410,8.50442472,1577.5,1577.4,10.88508]
[1745290771711,11.47632472,1577.5,1577.4,4.562]
[1745290772000,11.47632472,1577.5,1577.4,1.26788]
[1745290772906,1.2679,1577.4,1577.3,1.26793]
[1745290773205,1.7041,1577.4,1577.3,1.26796]
[1745290774107,9.294,1577.4,1577.3,1.26796]
[1745290776309,8.0261,1577.4,1577.3,1.26796]
[1745290776511,8.0261,1577.4,1577.3,3.05286]
[1745290777008,9.29398,1577.4,1577.3,3.05286]
[1745290777709,8.0261,1577.4,1577.3,3.05286]
[1745290778212,9.29398,1577.4,1577.3,3.05286]
[1745290779609,1.26796,1577.3,1577.2,5.82198]
[1745290779908,7.58991,1577.4,1577.3,1.26796]
[1745290780309,7.58991,1577.4,1577.3,2.95716]
[1745290782012,6.322,1577.4,1577.3,2.95716]
[1745290782916,6.322,1577.4,1577.3,4.02476]
[1745290783112,8.60618,1577.4,1577.3,2.95716]
[1745290783420,9.68128,1577.4,1577.3,1.26796]
[1745290783619,1.26796,1577.3,1577.2,5.822]
[1745290784127,7.58996,1577.3,1577.2,5.822]
[1745290784716,1.26804,1577.2,1577.1,7.2537]
[1745290785033,7.59002,1577.3,1577.1,9.02985]
[1745290785233,6.322,1577.2,1577.1,9.02985]
[1745290785434,7.59004,1577.2,1577.1,9.02985]
[1745290785642,7.59004,1577.2,1577.1,4.554]
[1745290785832,7.59004,1577.2,1577.1,1.26812]
[1745290787630,7.59004,1577.2,1577.0,1.8016]
[1745290787832,3.44362,1577.1,1577.0,3.06973]
[1745290788234,3.44362,1577.1,1577.0,1.26813]
[1745290788637,2.1755,1577.1,1577.0,1.26813]
[1745290788838,3.44362,1577.1,1577.0,1.26813]
[1745290789136,8.4975,1577.1,1577.0,3.12033]
[1745290789530,6.322,1577.1,1577.0,3.12033]
[1745290790138,3.44353,1577.3,1577.1,1.26804]
[1745290790339,3.44353,1577.3,1577.1,3.12024]
[1745290790539,3.44353,1577.3,1577.2,1.26804]
[1745290791140,9.76553,1577.3,1577.2,1.26804]
[1745290791841,6.322,1577.3,1577.2,4.47584]
[1745290792136,10.43776833,1577.5,1577.4,1.26788]
[1745290794146,0.00952472,1577.5,1577.4,1.26788]
[1745290798136,6.33152472,1577.5,1577.4,1.26788]
[1745290798538,6.33152472,1577.5,1577.4,4.47568]
[1745290799144,0.00952472,1577.5,1577.4,4.47568]
[1745290801245,4.72e-06,1577.5,1577.4,9.47568]
[1745290801448,3.837,1578.1,1577.5,3.1695]
[1745290801650,12.46473217,1578.3,1578.2,1.26724]
[1745290801846,22.55964189,1578.3,1578.0,4.546]
[1745290802052,0.00926028,1578.0,1577.9,1.26748]
[1745290802253,3.84626028,1578.0,1577.9,1.26748]
[1745290802551,3.837,1578.0,1577.9,1.25821972]
[1745290802851,5.10441,1578.0,1577.8,3.03561472]
[1745290803035,1.26785,1577.5,1577.3,3.2078]
[1745290803235,1.26776,1577.6,1577.3,9.5124]
[1745290803441,7.0942,1577.7,1577.5,1.26774]
[1745290803741,1.7693,1577.6,1577.4,4.02811]
[1745290803944,1.7693,1577.6,1577.3,4.546]
[1745290804144,1.26796,1577.3,1577.2,1.7195]
[1745290804352,3.2078,1577.4,1577.2,1.26797]
[1745290804548,2.88,1577.3,1577.2,2.98747]
[1745290804848,7.58975,1577.6,1577.2,10.1686809]
[1745290804849,6.322,1577.6,1577.2,10.1686809]
[1745290805049,1.8477,1577.5,1577.4,1.26785]
[1745290805442,3.11556,1577.5,1577.3,2.98744]
[1745290805748,3.1155,1577.5,1577.3,2.98739]
[1745290805946,1.26788,1577.4,1577.2,11.6569809]
[1745290806143,1.0071,1577.3,1577.2,11.6569809]
[1745290806343,1.8477,1577.4,1577.3,1.26796]
[1745290806549,3.11558,1577.4,1577.3,2.98746]
[1745290806753,1.8477,1577.4,1577.3,1.26796]
[1745290806947,3.11563,1577.4,1577.2,12.9249709]
[1745290807150,1.26796,1577.3,1577.2,3.2078]
[1745290807343,5.07496,1577.3,1577.2,3.2078]
[1745290807746,1.26804,1577.2,1577.1,6.27752472]
[1745290807940,1.7477,1577.2,1577.1,7.54564472]
[1745290808145,3.01574,1577.2,1577.1,0.00952472]
[1745290808753,6.22354,1577.2,1577.1,0.00952472]
[1745290808951,1.7477,1577.2,1577.1,1.27764472]
[1745290809147,3.33682472,1577.3,1577.1,2.99964472]
[1745290809459,3.81652472,1577.3,1577.2,1.26804]
[1745290809650,5.08448472,1577.3,1577.2,3.96144]
[1745290809849,5.08448472,1577.3,1577.2,2.6934]
[1745290810147,3.81652472,1577.3,1577.2,3.96144]
[1745290810654,0.00952472,1577.3,1577.2,3.96144]
[1745290811051,0.00952472,1577.3,1577.2,7.16924]
[1745290811357,0.00952472,1577.3,1577.2,12.16924]
[1745290811543,0.9946,1577.7,1577.3,3.1698]
[1745290811747,0.9815,1577.8,1577.6,1.26765]
[1745290811944,2.24908,1577.8,1577.7,1.7935]
[1745290812153,0.9815,1577.8,1577.7,3.06114]
[1745290813056,2.24906,1577.8,1577.7,3.06114]
[1745290813355,2.24906,1577.8,1577.7,1.7935]
[1745290813660,0.9815,1577.8,1577.4,4.2066]
[1745290813857,1.26773,1577.6,1577.4,8.50636]
[1745290814157,1.8455,1577.5,1577.4,8.50636]
[1745290814358,2.8204,1577.5,1577.4,8.50636]
[1745290815254,2.8204,1577.5,1577.4,5.81386]
[1745290815459,3.839,1577.5,1577.4,5.81386]
[1745290815958,5.1068,1577.5,1577.4,5.81386]
[1745290816158,5.1068,1577.5,1577.4,4.546]
[1745290816352,1.26789,1577.4,1577.2,7.2914]
[1745290816659,1.7158,1577.4,1577.3,1.26795]
[1745290817359,1.9935,1577.5,1577.4,1.26788]
[1745290817661,3.7093,1577.5,1577.4,1.26788]
[1745290819157,3.7093,1577.5,1577.3,2.97859]
[1745290819158,4.9771,1577.5,1577.3,2.97859]
[1745290819360,1.8078,1577.4,1577.3,2.97859]
[1745290819759,1.8078,1577.4,1577.3,1.26789]
[1745290820156,3.07568,1577.4,1577.3,1.26789]
[1745290820362,1.8078,1577.4,1577.2,9.02179]
[1745290820560,1.8078,1577.3,1577.2,9.02179]
[1745290821067,1.9935,1577.5,1577.4,1.26788]
[1745290821361,3.8013,1577.5,1577.4,1.26788]
[1745290821662,3.8013,1577.5,1577.2,7.7538]
[1745290821857,3.07569,1577.4,1577.3,1.26794]
[1745290822262,9.39769,1577.4,1577.3,1.26794]
[1745290822764,6.322,1577.4,1577.3,1.26794]
[1745290823060,6.322,1577.4,1577.3,3.12794]
[1745290823262,1.7461,1577.4,1577.3,3.12794]
[1745290823650,1.9935,1577.5,1577.4,1.26788]
[1745290823855,1.9935,1577.5,1577.4,3.12788]
[1745290824054,3.7396,1577.5,1577.4,3.12788]
[1745290824261,10.0616,1577.5,1577.4,3.12788]
[1745290824453,6.322,1577.5,1577.4,3.12788]
[1745290825160,1.856,1577.6,1577.5,1.2678]
[1745290825862,1.856,1577.6,1577.5,2.9755]
[1745290826164,3.12372,1577.6,1577.5,1.7077]
[1745290826364,3.12372,1577.6,1577.4,3.32423]
[1745290826659,1.856,1577.5,1577.4,3.32423]
[1745290826867,5.02552,1577.5,1577.1,1.27757472]
[1745290827164,1.26804,1577.2,1577.1,1.27757472]
[1745290827368,1.26802,1577.3,1577.2,1.26803]
[1745290827555,3.12402,1577.3,1577.2,1.26803]
[1745290827756,1.856,1577.3,1577.2,1.26803]
[1745290829067,1.9384,1577.4,1577.3,1.26796]
[1745290829267,0.9675,1577.4,1577.3,8.63756]
[1745290829468,5.257,1577.6,1577.5,1.2678]
[1745290829965,6.9968,1577.6,1577.5,1.2678]
[1745290830159,13.3188,1577.6,1577.5,1.2678]
[1745290831168,3.789,1577.6,1577.5,1.2678]
[1745290831667,3.789,1577.6,1577.4,3.09052]
[1745290831964,2.9886,1577.5,1577.4,1.26782]
[1745290832767,1.26788,1577.4,1577.3,3.04499]
[1745290833063,1.26804,1577.2,1577.1,1.27759472]
[1745290833465,1.26804,1577.2,1577.1,5.81759472]
[1745290834071,2.98884,1577.2,1577.1,5.81759472]
[1745290834264,8.0428,1577.2,1577.1,5.81759472]
[1745290834966,8.0428,1577.2,1577.1,7.65869472]
[1745290835168,1.7208,1577.2,1577.1,7.65869472]
[1745290838573,3.2078,1577.4,1577.3,1.26796]
[1745290838767,1.26797,1577.3,1577.1,4.54952472]
[1745290839069,1.26804,1577.2,1577.1,5.81762472]
[1745290839260,3.00484,1577.2,1577.1,7.61702472]
[1745290839461,3.87084,1577.2,1577.1,7.61702472]
[1745290839662,2.6028,1577.2,1577.1,5.81762472]
[1745290840165,8.9248,1577.2,1577.1,5.81762472]
[1745290840871,10.19284,1577.2,1577.1,5.81762472]
[1745290841171,10.19284,1577.2,1577.1,4.54952472]
[1745290841376,13.40064,1577.2,1577.1,5.81764472]
[1745290841570,10.19284,1577.2,1577.1,4.54952472]
[1745290841872,10.19284,1577.2,1577.1,5.81764472]
[1745290842172,3.87084,1577.2,1577.1,5.81764472]
[1745290842777,3.87084,1577.2,1577.1,4.54952472]
[1745290843474,7.07864,1577.2,1577.1,5.81764472]
[1745290844471,3.87084,1577.2,1577.1,5.81764472]
[1745290845069,3.87084,1577.2,1577.1,4.54952472]
[1745290845669,3.87084,1577.2,1577.1,0.00952472]
[1745290845872,7.07864,1577.2,1577.1,0.00952472]
[1745290846473,7.07864,1577.2,1576.8,6.17091]
[1745290846474,1.26828,1576.9,1576.8,4.47611]
[1745290846775,1.26828,1576.9,1576.7,6.2857]
[1745290846776,1.26836,1576.8,1576.7,47.1821]
[1745290847070,2.16846,1576.8,1576.7,47.1821]
[1745290847672,4.00826,1576.8,1576.7,47.1821]
[1745290847872,1.26844,1576.7,1576.6,0.00952472]
[1745290848077,3.10824,1576.7,1576.6,0.00952472]
[1745290849476,3.10824,1576.7,1576.6,1.27804472]
[1745290849776,3.10824,1576.7,1576.6,2.99194472]
[1745290851376,3.10824,1576.7,1576.6,1.72342472]
[1745290852274,3.10824,1576.7,1576.6,0.00952472]
[1745290852476,1.26857,1576.6,1576.5,1.26858]
[1745290852778,3.95657,1576.6,1576.5,1.26858]
[1745290853780,3.95657,1576.6,1576.5,3.09258]
[1745290856782,3.95657,1576.6,1576.5,1.824]
[1745290857382,3.95657,1576.6,1576.5,3.0926]
[1745290857981,3.95657,1576.6,1576.5,1.824]
[1745290858483,3.95657,1576.6,1576.5,3.0926]
[1745290859378,3.95657,1576.6,1576.5,1.824]
[1745290859686,1.2686,1576.5,1576.4,6.74160472]
[1745290860372,1.2686,1576.5,1576.4,8.44230472]
[1745290862287,3.9566,1576.6,1576.5,1.2686]
[1745290862580,3.9566,1576.6,1576.5,1.795]
[1745290863583,3.9566,1576.6,1576.5,3.0636]
[1745290863882,1.2685,1576.7,1576.6,1.26849]
[1745290864077,1.26852,1576.6,1576.5,3.06353]
[1745290864480,3.97071,1576.7,1576.6,1.26852]
[1745290864784,1.26851,1576.7,1576.6,1.6805]
[1745290864987,1.26851,1576.7,1576.6,3.80262]
[1745290865175,3.07481,1576.7,1576.6,3.80262]
[1745290866185,3.07481,1576.7,1576.6,2.5341]
[1745290866887,1.2686,1576.5,1576.4,4.13972472]
[1745290867188,4.4764,1576.5,1576.4,0.00952472]
[1745290867686,6.2252,1576.5,1576.4,0.00952472]
[1745290868783,4.9566,1576.5,1576.4,0.00952472]
[1745290868983,0.00952472,1576.9,1576.4,3.18121472]
[1745290869295,1.26841,1576.8,1576.7,1.26844]
[1745290869587,1.26844,1576.7,1576.6,2.6027]
[1745290870090,1.26844,1576.7,1576.6,7.1387]
[1745290870290,3.98394,1576.7,1576.6,2.6027]
[1745290871388,3.98394,1576.7,1576.6,1.7517]
[1745290871887,3.98394,1576.7,1576.6,3.02022]
[1745290872083,3.98394,1576.7,1576.6,3.96522]
[1745290872485,1.26844,1576.7,1576.6,3.96522]
[1745290872986,4.47621,1576.8,1576.7,1.26844]
[1745290873176,3.2078,1576.8,1576.7,3.07244]
[1745290873378,0.00952472,1576.9,1576.8,1.26836]
[1745290873588,0.00952472,1576.9,1576.8,3.93776]
[1745290874181,0.00952472,1576.9,1576.8,8.93776]
[1745290876982,0.00952472,1576.9,1576.8,3.93776]
[1745290877178,0.00952472,1576.9,1576.8,8.93776]
[1745290878288,0.00952472,1576.9,1576.8,3.93776]
[1745290879390,0.00952472,1576.9,1576.8,8.47276]
[1745290883494,1.27780472,1576.9,1576.8,8.47276]
[1745290883799,0.00952472,1576.9,1576.8,8.47276]
[1745290884488,3.2078,1577.4,1577.0,3.17037]
[1745290884688,3.2078,1577.7,1577.6,1.26772]
[1745290884887,1.26764,1577.7,1577.6,40.8]
[1745290885194,1.8444,1577.7,1577.6,42.06772]
[1745290885800,3.11204,1577.7,1577.6,42.06772]
[1745290887997,1.8444,1577.7,1577.6,42.06772]
[1745290888201,1.76262472,1577.8,1577.7,1.26764]
[1745290888202,0.00952472,1577.8,1577.7,1.26764]
[1745290888494,1.781,1578.1,1578.0,1.2674]
[1745290888698,0.883,1578.1,1578.0,1.2674]
[1745290889892,2.6663,1578.1,1578.0,1.2674]
[1745290890094,8.9883,1578.1,1578.0,1.2674]
[1745290890295,10.25564,1578.1,1578.0,1.2674]
[1745290890699,10.25564,1578.1,1577.9,3.04492]
[1745290891004,8.9883,1578.1,1578.0,1.2674]
[1745290891301,0.00952472,1578.2,1578.1,1.26732]
[1745290891497,1.27676472,1578.2,1578.1,1.7775]
[1745290892202,7.59876472,1578.2,1578.1,1.7775]
[1745290892502,7.59876472,1578.2,1578.0,6.73143]
[1745290892503,1.26732,1578.1,1578.0,5.4641]
[1745290892699,3.03472,1578.1,1578.0,4.533]
[1745290892903,1.26746,1578.0,1577.8,9.92719]
[1745290893204,1.7674,1577.9,1577.8,11.70549]
[1745290893400,3.03484,1578.0,1577.8,11.7055]
[1745290893702,3.03484,1578.0,1577.9,1.7783]
[1745290893903,3.03484,1578.0,1577.9,3.04578]
[1745290894101,3.03484,1578.0,1577.9,1.7783]
[1745290895095,9.35684,1578.0,1577.9,3.04578]
[1745290895301,8.0894,1578.0,1577.9,3.04578]
[1745290895603,6.322,1578.0,1577.9,3.04578]
[1745290896407,7.5894,1578.0,1577.9,3.04578]
[1745290896702,8.0825,1578.0,1577.9,3.04578]
[1745290897601,9.3499,1578.0,1577.9,1.7783]
[1745290897808,1.26748,1577.9,1577.8,4.533]
[1745290898107,1.26758,1577.8,1577.7,1.26764]
[1745290898304,2.12038,1577.8,1577.6,48.27546]
[1745290898608,1.858,1577.7,1577.6,48.27546]
[1745290899209,8.18,1577.7,1577.6,48.27546]
[1745290899401,8.18,1577.7,1577.6,51.48326]
[1745290900810,6.322,1577.7,1577.6,51.48326]
[1745290901111,6.322,1577.7,1577.6,56.48326]
[1745290901323,3.07334,1578.1,1578.0,1.2674]
[1745290901509,3.07334,1578.1,1577.9,5.79442]
[1745290901803,1.2674,1578.0,1577.9,5.79442]
[1745290902011,3.0734,1578.0,1577.9,4.527]
[1745290902209,9.3954,1578.0,1577.9,4.527]
[1745290903212,9.3954,1578.0,1577.9,5.79448]
[1745290904007,6.322,1578.0,1577.9,5.79448]
[1745290904208,2.96398,1578.1,1578.0,1.2674]
[1745290904412,1.2674,1578.0,1577.9,7.55071]
[1745290904604,2.964,1578.0,1577.9,7.55071]
[1745290905002,1.26756,1577.8,1577.7,5.79462]
[1745290905206,7.58956,1577.8,1577.7,5.79462]
[1745290905514,7.58956,1577.8,1577.7,4.527]
[1745290905815,10.18766,1577.8,1577.7,4.527]
[1745290906718,8.9201,1577.8,1577.5,4.53552472]
[1745290906916,1.26772,1577.6,1577.5,0.00952472]
[1745290907215,1.26788,1577.4,1577.3,4.526]
[1745290907613,1.26796,1577.3,1577.2,42.06801]
[1745290907912,1.26796,1577.3,1577.1,4.526]
[1745290907913,1.26804,1577.2,1577.1,6.2194]
[1745290908213,2.7076,1577.2,1576.9,8.34212]
[1745290908412,2.7076,1577.2,1577.0,1.27772472]
[1745290908613,3.97568,1577.2,1577.0,0.00952472]
[1745290908811,3.97568,1577.2,1577.0,2.97106472]
[1745290909219,10.29768,1577.2,1577.0,2.97106472]
[1745290909516,10.29764,1577.2,1577.1,1.26812]
[1745290909815,10.29764,1577.2,1577.1,2.96152]
[1745290910919,10.29764,1577.2,1577.1,1.6934]
[1745290911122,1.26812,1577.1,1577.0,0.00952472]
[1745290911320,1.6855,1577.1,1577.0,1.27772472]
[1745290911623,1.6855,1577.1,1577.0,3.13712472]
[1745290911923,2.95362,1577.1,1577.0,1.86892472]
[1745290912219,2.95362,1577.1,1577.0,0.00952472]
[1745290913311,2.95362,1577.1,1577.0,1.27772472]
[1745290913722,2.95362,1577.1,1577.0,0.00952472]
[1745290915122,2.95362,1577.1,1577.0,1.27772472]
[1745290915719,2.95362,1577.1,1577.0,0.00952472]
[1745290916912,2.95362,1577.1,1577.0,1.27772472]
[1745290917712,2.95362,1577.1,1577.0,2.97382472]
[1745290918315,0.00952472,1577.3,1577.0,9.91342472]
[1745290918514,0.00952472,1577.3,1577.2,1.26804]
[1745290918818,0.00952472,1577.3,1577.2,5.79604]
[1745290919123,0.00952472,1577.3,1577.2,12.49214]
[1745290919323,3.2078,1577.5,1577.4,1.26788]
[1745290919623,3.2078,1577.5,1577.2,12.49214]
[1745290919624,1.26766,1577.7,1577.6,1.26772]
[1745290919814,1.26772,1577.6,1577.4,1.7169]
[1745290920009,1.8507,1577.6,1577.4,2.98474]
[1745290920310,3.11849,1577.6,1577.4,2.98474]
[1745290920518,1.2678,1577.5,1577.4,2.98474]
[1745290920718,3.1185,1577.5,1577.4,2.98474]
[1745290920920,1.8507,1577.5,1577.4,2.98474]
[1745290921212,3.1185,1577.5,1577.4,1.7169]
[1745290921417,1.8507,1577.5,1577.4,2.98478]
[1745290922424,3.1185,1577.5,1577.4,2.98478]
[1745290923120,1.26796,1577.3,1577.2,7.7358]
[1745290923316,1.26796,1577.3,1577.2,10.68034]
[1745290923516,1.8025,1577.4,1577.3,1.26796]
[1745290923517,3.5785,1577.4,1577.3,1.26796]
[1745290923724,3.5785,1577.4,1577.3,2.94446]
[1745290923919,3.2078,1577.5,1577.4,1.26788]
[1745290924115,5.984,1577.6,1577.5,1.2678]
[1745290924116,9.05422,1577.6,1577.5,1.2678]
[1745290924625,5.984,1577.6,1577.5,5.7958]
[1745290924822,5.984,1577.6,1577.5,7.6078]
[1745290925027,5.984,1577.6,1577.5,10.8156]
[1745290925526,5.984,1577.6,1577.5,7.6078]
[1745290926132,5.984,1577.6,1577.5,5.7958]
[1745290926424,7.7267,1577.6,1577.5,5.7958]
[1745290927522,10.9345,1577.6,1577.4,1.6765]
[1745290927828,2.5933,1577.5,1577.4,2.94434]
[1745290928719,3.8611,1577.5,1577.4,2.94434]
[1745290928920,2.5933,1577.5,1577.4,2.94434]
[1745290930026,1.26777,1577.6,1577.5,1.2678]
[1745290930227,1.26777,1577.6,1577.5,1.8083]
[1745290930531,1.2678,1577.5,1577.4,3.07613]
[1745290931027,1.2678,1577.5,1577.4,1.8083]
[1745290931230,1.2678,1577.5,1577.4,3.07618]
[1745290931430,1.2678,1577.5,1577.4,1.8083]
[1745290931727,3.0869,1577.5,1577.4,3.07618]
[1745290932332,0.00952472,1577.7,1577.6,1.26772]
[1745290932820,0.00952472,1577.7,1577.6,10.78972]
[1745290933024,4.72e-06,1577.7,1577.6,13.41582]
[1745290936128,1.771,1578.4,1578.3,1.26716]
[1745290936328,1.76173972,1578.4,1578.3,1.26716]
[1745290936534,1.76173972,1578.4,1578.3,42.06716]
[1745290937732,0.9249,1578.5,1578.4,1.26708]
[1745290938031,6.322,1578.6,1578.5,1.267]
[1745290938330,1.26684,1578.7,1578.5,1.26692]
[1745290938530,1.26684,1578.7,1578.4,7.48603]
[1745290938735,1.26684,1578.7,1578.5,1.26699]
[1745290939035,12.24641,1578.8,1578.6,1.2669]
[1745290939233,6.322,1578.7,1578.6,1.2669]
[1745290939434,8.0894,1578.7,1578.6,1.2669]
[1745290940428,6.322,1578.7,1578.6,1.2669]
[1745290940629,6.322,1578.7,1578.6,2.9639]
[1745290941130,8.1372,1578.7,1578.6,2.9639]
[1745290941937,9.40403,1578.7,1578.6,1.697]
[1745290942132,3.08203,1578.7,1578.6,1.697]
[1745290943239,9.40403,1578.7,1578.6,1.697]
[1745290943536,9.40403,1578.7,1578.6,2.96392]
[1745290944037,8.1372,1578.7,1578.6,2.96392]
[1745290944637,8.1372,1578.7,1578.6,1.26692]
[1745290945032,6.322,1578.7,1578.6,1.26692]
[1745290945337,1.8377,1578.9,1578.8,1.26675]
[1745290946137,4.47443,1579.0,1578.8,1.26673]
[1745290946341,5.0455,1579.0,1578.9,1.26667]
[1745290946534,1.8377,1579.0,1578.9,1.26667]
[1745290947139,1.8377,1579.0,1578.9,3.08447]
[1745290947342,6.322,1579.0,1578.9,3.08447]
[1745290948042,6.322,1579.0,1578.9,8.08447]
[1745290948242,1.8582,1579.3,1579.2,1.26643]
[1745290948436,1.8582,1579.3,1579.2,5.78543]
[1745290949233,8.1802,1579.3,1579.2,5.78543]
[1745290949434,6.322,1579.3,1579.2,5.78543]
[1745290949944,8.1118,1579.3,1579.2,5.78543]
[1745290950136,8.1118,1579.3,1579.2,7.58923]
[1745290951641,6.322,1579.3,1579.2,7.58923]
[1745290953848,8.068,1579.3,1579.2,7.58923]
[1745290955038,6.322,1579.3,1579.2,10.79703]
[1745290955243,3.2078,1579.8,1579.2,10.79703]
[1745290955244,4.47381,1579.8,1579.7,1.26603]
[1745290955445,11.21981,1579.8,1579.7,1.26603]
[1745290955737,11.21981,1579.8,1579.5,47.1166]
[1745290955942,3.01203,1579.7,1579.6,1.26605]
[1745290956130,6.322,1579.7,1579.6,1.26611]
[1745290956337,6.322,1579.7,1579.6,2.99271]
[1745290956842,6.322,1579.7,1579.6,12.10361]
[1745290957143,4.959,1580.0,1579.9,1.26587]
[1745290957335,4.959,1580.0,1579.9,5.77987]
[1745290957639,6.22479,1580.0,1579.9,45.314]
[1745290957844,1.2659,1579.9,1579.8,4.513]
[1745290958140,3.0171,1579.9,1579.8,4.513]
[1745290958341,3.0171,1579.9,1579.8,45.313]
[1745290958945,3.0171,1579.9,1579.8,46.57895]
[1745290959145,9.3391,1579.9,1579.8,46.57895]
[1745290959445,8.0732,1579.9,1579.8,46.57895]
[1745290959945,9.33907,1579.9,1579.8,46.57895]
[1745290960340,8.0732,1579.9,1579.8,46.57895]
[1745290960540,9.33907,1579.9,1579.8,46.57895]
[1745290960735,8.0732,1579.9,1579.8,46.57895]
[1745290960940,9.33907,1579.9,1579.8,46.57895]
[1745290961142,8.0732,1579.9,1579.8,46.57895]
[1745290961347,9.33907,1579.9,1579.8,46.57895]
[1745290961949,6.322,1579.9,1579.8,46.57895]
[1745290962142,4.9186,1580.0,1579.8,46.57895]
[1745290962444,1.7108,1579.9,1579.8,46.57895]
[1745290962646,2.97667,1579.9,1579.8,46.57895]
[1745290963036,1.7108,1579.9,1579.8,46.57895]
[1745290963345,9.29867,1579.9,1579.8,46.57895]
[1745290963544,8.0328,1579.9,1579.8,46.57895]
[1745290964044,6.322,1579.9,1579.8,48.30995]
[1745290964246,1.8395,1580.1,1580.0,1.26579]
[1745290964947,4.81601,1580.1,1580.0,1.26579]
[1745290965147,11.13801,1580.1,1580.0,1.26579]
[1745290965348,1.26579,1580.0,1579.9,1.27534396]
[1745290965647,3.07859,1580.0,1579.9,1.27534396]
[1745290965948,3.07859,1580.0,1579.9,42.07534396]
[1745290966247,8.1348,1580.0,1579.9,42.07534396]
[1745290966547,9.40059,1580.0,1579.9,40.80949396]
[1745290966750,12.60839,1580.0,1579.9,0.00949396]
[1745290967840,6.322,1580.0,1579.9,1.27536396]
[1745290968139,6.322,1580.0,1579.9,3.04346396]
[1745290968335,9.33819,1580.0,1579.9,0.00949396]
[1745290968854,1.26595,1579.8,1579.7,5.77701]
[1745290969246,1.26619,1579.5,1579.4,102.33623]
[1745290969446,1.26615,1579.6,1579.4,4.511]
[1745290969642,3.01659,1579.5,1579.4,5.77722]
[1745290969841,1.7504,1579.5,1579.4,7.60482]
[1745290970143,1.7504,1579.5,1579.4,48.40482]
[1745290970348,8.0724,1579.5,1579.4,47.1386]
[1745290970550,9.33859,1579.5,1579.4,45.311]
[1745290970851,9.33859,1579.5,1579.4,46.57727]
[1745290971147,8.0724,1579.5,1579.4,46.57727]
[1745290971350,8.0724,1579.5,1579.4,48.30807]
[1745290972251,6.322,1579.5,1579.4,48.30807]
[1745290973243,7.58819,1579.5,1579.4,48.30807]
[1745290974050,7.58819,1579.5,1579.4,47.0418]
[1745290974245,6.322,1579.5,1579.4,48.30807]
[1745290975251,1.7051,1579.6,1579.5,1.26619]
[1745290975445,2.97121,1579.6,1579.5,2.98409]
[1745290976447,8.10469147,1579.7,1579.6,1.26611]
[1745290976648,6.33139147,1579.7,1579.6,2.98401]
[1745290977351,0.00939147,1579.7,1579.6,2.98401]
[1745290978950,0.00939147,1579.7,1579.6,43.78401]
[1745290981848,4.47331,1580.4,1580.3,1.26555]
[1745290982048,3.2078,1580.4,1580.3,1.26555]